[Event "*** Qualifier 3: Titled Tuesday 3|2 Blitz"]
[Site "Chess.com"]
[Date "2017.04.18"]
[Round "6"]
[White "brauliocuarta"]
[Black "abubakrtagelsir"]
[Result "0-1"]
[WhiteElo "2135"]
[BlackElo "2164"]
[TimeControl "180+2"]
[EndTime "14:22:04 PDT"]
[Termination "abubakrtagelsir won by resignation"]

1. d4 {[%clk 0:02:52.5]} 1... d5 {[%clk 0:03:00.3]} 2. c4 {[%clk 0:02:53.3]}
2... c6 {[%clk 0:03:00.9]} 3. Nf3 {[%clk 0:02:53.2]} 3... Nf6 {[%clk 0:03:01.5]}
4. Nc3 {[%clk 0:02:54.8]} 4... dxc4 {[%clk 0:03:00.7]} 5. a4 {[%clk 0:02:55.7]}
5... Bf5 {[%clk 0:03:00.7]} 6. e3 {[%clk 0:02:57.3]} 6... e6 {[%clk 0:03:01.2]}
7. Bxc4 {[%clk 0:02:58.5]} 7... Bb4 {[%clk 0:03:01.7]} 8. O-O {[%clk 0:02:59.9]}
8... O-O {[%clk 0:03:00.6]} 9. Qe2 {[%clk 0:03:01.2]} 9... Nbd7 {[%clk
0:03:00.4]} 10. e4 {[%clk 0:02:55.5]} 10... Bg6 {[%clk 0:02:59.8]} 11. Bd3
{[%clk 0:02:54.9]} 11... Bh5 {[%clk 0:02:59.8]} 12. e5 {[%clk 0:02:55.5]} 12...
Nd5 {[%clk 0:02:59.9]} 13. Nxd5 {[%clk 0:02:56.5]} 13... cxd5 {[%clk 0:02:58.9]}
14. Qe3 {[%clk 0:02:57.7]} 14... Bg6 {[%clk 0:02:57]} 15. Bxg6 {[%clk
0:02:57.2]} 15... fxg6 {[%clk 0:02:56.5]} 16. a5 {[%clk 0:02:54.1]} 16... Bxa5
{[%clk 0:02:40.5]} 17. Ng5 {[%clk 0:02:53.8]} 17... Re8 {[%clk 0:02:40.5]} 18.
Qh3 {[%clk 0:02:06]} 18... Nf8 {[%clk 0:02:39.2]} 19. Qf3 {[%clk 0:02:02.9]}
19... Re7 {[%clk 0:02:38.5]} 20. Qb3 {[%clk 0:01:26.7]} 20... Bb6 {[%clk
0:02:33]} 21. Nf3 {[%clk 0:01:25.7]} 21... Rc8 {[%clk 0:02:31.3]} 22. Bg5 {[%clk
0:01:25.8]} 22... h6 {[%clk 0:02:15.3]} 23. Bxe7 {[%clk 0:01:26.3]} 23... Qxe7
{[%clk 0:02:15.5]} 24. Rfc1 {[%clk 0:01:26]} 24... Rd8 {[%clk 0:02:12.9]} 25.
Rc2 {[%clk 0:01:20.3]} 25... g5 {[%clk 0:02:10.4]} 26. h3 {[%clk 0:01:15.2]}
26... Ng6 {[%clk 0:02:03.4]} 27. Rac1 {[%clk 0:01:13.2]} 27... Nf4 {[%clk
0:01:58.4]} 28. Kf1 {[%clk 0:01:07.6]} 28... Qe8 {[%clk 0:01:53.8]} 29. g3
{[%clk 0:00:42.5]} 29... Nxh3 {[%clk 0:01:51.4]} 30. Qd3 {[%clk 0:00:37.8]}
30... g4 {[%clk 0:01:48.4]} 31. Nh4 {[%clk 0:00:25.9]} 31... Ng5 {[%clk
0:01:04.8]} 32. Ng6 {[%clk 0:00:21.9]} 32... Ne4 {[%clk 0:01:02.2]} 33. Nf4
{[%clk 0:00:22]} 33... g5 {[%clk 0:00:36.8]} 34. Ng2 {[%clk 0:00:19.4]} 34...
Qf7 {[%clk 0:00:34.6]} 35. Kg1 {[%clk 0:00:16.1]} 35... Rf8 {[%clk 0:00:33.9]}
36. Rf1 {[%clk 0:00:15.7]} 36... Qf3 {[%clk 0:00:29.1]} 37. Qxf3 {[%clk
0:00:10.4]} 37... gxf3 {[%clk 0:00:29.6]} 38. Ne3 {[%clk 0:00:09.4]} 38... Bxd4
{[%clk 0:00:29.3]} 39. Ng4 {[%clk 0:00:11]} 39... h5 {[%clk 0:00:29]} 40. Nf6+
{[%clk 0:00:09.2]} 40... Nxf6 {[%clk 0:00:29]} 41. exf6 {[%clk 0:00:11.1]} 41...
Rxf6 {[%clk 0:00:29.7]} 42. Rc8+ {[%clk 0:00:07]} 42... Kg7 {[%clk 0:00:29.9]}
43. Rc7+ {[%clk 0:00:07.1]} 43... Rf7 {[%clk 0:00:30.4]} 44. Rfc1 {[%clk
0:00:07.7]} 44... b5 {[%clk 0:00:29.7]} 45. Rxf7+ {[%clk 0:00:06.8]} 45... Kxf7
{[%clk 0:00:30.3]} 46. b4 {[%clk 0:00:07.8]} 46... Bb6 {[%clk 0:00:26]} 47. Kf1
{[%clk 0:00:06.9]} 47... e5 {[%clk 0:00:26.5]} 48. Rc6 {[%clk 0:00:06.4]} 48...
e4 {[%clk 0:00:22.5]} 49. Ke1 {[%clk 0:00:05.8]} 49... d4 {[%clk 0:00:22.9]} 50.
Rh6 {[%clk 0:00:07]} 50... e3 {[%clk 0:00:22.8]} 51. fxe3 {[%clk 0:00:07.1]}
51... dxe3 {[%clk 0:00:23.4]} 52. Rxh5 {[%clk 0:00:08.5]} 52... Kg6 {[%clk
0:00:22.1]} 53. g4 {[%clk 0:00:08.6]} 53... e2 {[%clk 0:00:19.9]} 54. Rh8 {[%clk
0:00:08.6]} 54... Bd4 {[%clk 0:00:19.9]} 55. Rc8 {[%clk 0:00:09.3]} 55... Be5
{[%clk 0:00:20.1]} 56. Rc6+ {[%clk 0:00:09]} 56... Kf7 {[%clk 0:00:20.3]} 57.
Kf2 {[%clk 0:00:10.9]} 57... Bg3+ {[%clk 0:00:20.4]} 58. Kxf3 {[%clk 0:00:05.9]}
58... e1=Q {[%clk 0:00:20.8]} 59. Rf6+ {[%clk 0:00:07.1]} 59... Kxf6 {[%clk
0:00:20.7]} 60. Kg2 {[%clk 0:00:07.5]} 0-1

[Event "*** Qualifier 3: Titled Tuesday 3|2 Blitz"]
[Site "Chess.com"]
[Date "2017.04.18"]
[Round "6"]
[White "sorito"]
[Black "Iball95"]
[Result "1/2-1/2"]
[WhiteElo "2415"]
[BlackElo "2523"]
[TimeControl "180+2"]
[EndTime "14:22:10 PDT"]
[Termination "Game drawn by agreement"]

1. d4 {[%clk 0:03:02]} 1... d5 {[%clk 0:03:00.4]} 2. Nf3 {[%clk 0:03:03.3]} 2...
Nf6 {[%clk 0:03:00.9]} 3. e3 {[%clk 0:03:04.8]} 3... e6 {[%clk 0:02:58.4]} 4.
Bd3 {[%clk 0:03:04.9]} 4... b6 {[%clk 0:02:59]} 5. b3 {[%clk 0:03:05]} 5... Bb7
{[%clk 0:03:00.1]} 6. Bb2 {[%clk 0:03:05.2]} 6... Bd6 {[%clk 0:03:00]} 7. Nbd2
{[%clk 0:03:06.3]} 7... O-O {[%clk 0:03:01.3]} 8. O-O {[%clk 0:03:07.6]} 8...
Ne4 {[%clk 0:03:02.6]} 9. c4 {[%clk 0:03:05.4]} 9... Nd7 {[%clk 0:03:00.7]} 10.
Qc2 {[%clk 0:03:06.5]} 10... f5 {[%clk 0:02:58.7]} 11. Rac1 {[%clk 0:03:04.2]}
11... Rc8 {[%clk 0:02:56.8]} 12. cxd5 {[%clk 0:02:51]} 12... exd5 {[%clk
0:02:58.7]} 13. Ne5 {[%clk 0:02:46.5]} 13... Qe7 {[%clk 0:02:57.1]} 14. Ndf3
{[%clk 0:02:46.8]} 14... c5 {[%clk 0:02:52.5]} 15. Nxd7 {[%clk 0:02:44.5]} 15...
Qxd7 {[%clk 0:02:54.4]} 16. dxc5 {[%clk 0:02:44.4]} 16... bxc5 {[%clk
0:02:53.7]} 17. Qe2 {[%clk 0:02:40.4]} 17... f4 {[%clk 0:02:35.2]} 18. Ne5
{[%clk 0:02:24.7]} 18... Qe7 {[%clk 0:02:25.4]} 19. Bxe4 {[%clk 0:02:23.4]}
19... Bxe5 {[%clk 0:01:53.8]} 20. Bxe5 {[%clk 0:02:20.8]} 20... Qxe5 {[%clk
0:01:55.7]} 21. Bf3 {[%clk 0:02:20.8]} 21... fxe3 {[%clk 0:01:54.9]} 22. Qxe3
{[%clk 0:02:18]} 22... Qxe3 {[%clk 0:01:54.7]} 23. fxe3 {[%clk 0:02:19.5]} 23...
Rfd8 {[%clk 0:01:44.3]} 24. Rfd1 {[%clk 0:02:19.8]} 24... Kf7 {[%clk 0:01:41.7]}
25. Rd2 {[%clk 0:02:21.1]} 25... Ke7 {[%clk 0:01:36.7]} 26. Rcd1 {[%clk
0:02:15.7]} 26... c4 {[%clk 0:01:25.8]} 27. bxc4 {[%clk 0:02:14.6]} 27... Rxc4
{[%clk 0:01:27.7]} 28. Bxd5 {[%clk 0:02:13.8]} 28... Rxd5 {[%clk 0:01:24.4]} 29.
Rxd5 {[%clk 0:02:15.7]} 29... Bxd5 {[%clk 0:01:25.3]} 30. Rxd5 {[%clk
0:02:16.3]} 30... Rc1+ {[%clk 0:01:26.5]} 31. Kf2 {[%clk 0:02:14.9]} 31... Rc2+
{[%clk 0:01:28.1]} 32. Kf3 {[%clk 0:02:15.7]} 32... Rxa2 {[%clk 0:01:29.7]} 33.
Rb5 {[%clk 0:02:15.7]} 33... Rd2 {[%clk 0:01:22.7]} 34. Ra5 {[%clk 0:02:14.8]}
34... Rd7 {[%clk 0:01:23.4]} 35. Ra6 {[%clk 0:02:16.1]} 35... Kd8 {[%clk
0:01:23.2]} 36. e4 {[%clk 0:02:17.7]} 36... Kc8 {[%clk 0:01:24.6]} 37. e5 {[%clk
0:02:19.2]} 37... Kb7 {[%clk 0:01:25.5]} 38. Ra2 {[%clk 0:02:17.8]} 38... Kb6
{[%clk 0:01:25.1]} 39. Ke4 {[%clk 0:02:19]} 39... a5 {[%clk 0:01:25.8]} 40. e6
{[%clk 0:02:20.4]} 40... Rd1 {[%clk 0:01:11.9]} 41. Ke5 {[%clk 0:02:12.3]} 41...
Kc7 {[%clk 0:00:47.9]} 42. Rxa5 {[%clk 0:02:00.5]} 42... Re1+ {[%clk 0:00:48.6]}
43. Kd5 {[%clk 0:02:00.8]} 43... Rd1+ {[%clk 0:00:49.1]} 44. Ke5 {[%clk
0:01:52.3]} 44... Re1+ {[%clk 0:00:50.1]} 45. Kf5 {[%clk 0:01:53.6]} 45... Rf1+
{[%clk 0:00:48.7]} 46. Kg5 {[%clk 0:01:53.8]} 46... Rf2 {[%clk 0:00:43.5]} 47.
g4 {[%clk 0:01:35.8]} 47... Rxh2 {[%clk 0:00:42.1]} 48. Ra7+ {[%clk 0:01:31.1]}
48... Kd6 {[%clk 0:00:42.9]} 49. e7 {[%clk 0:01:12.3]} 49... Re2 {[%clk
0:00:41.8]} 50. e8=Q {[%clk 0:01:12.2]} 50... Rxe8 {[%clk 0:00:43.7]} 51. Rxg7
{[%clk 0:01:12.5]} 51... Ke6 {[%clk 0:00:38.1]} 52. Rxh7 {[%clk 0:01:12.2]}
52... Rg8+ {[%clk 0:00:38.8]} 53. Kf4 {[%clk 0:01:11]} 53... Kf6 {[%clk
0:00:37.9]} 54. Rh6+ {[%clk 0:01:09.9]} 54... Kg7 {[%clk 0:00:36.9]} 55. Ra6
{[%clk 0:01:09.9]} 55... Rb8 {[%clk 0:00:37.6]} 56. Ra7+ {[%clk 0:01:06.5]}
56... Kg6 {[%clk 0:00:38.5]} 57. Ra6+ {[%clk 0:01:08.1]} 57... Kg7 {[%clk
0:00:40]} 58. Ra5 {[%clk 0:00:59.9]} 58... Kg6 {[%clk 0:00:37.8]} 59. Ra6+
{[%clk 0:01:00.7]} 59... Kg7 {[%clk 0:00:38.7]} 60. Kg5 {[%clk 0:01:01.4]} 60...
Rb5+ {[%clk 0:00:39.2]} 61. Kh4 {[%clk 0:01:03.1]} 61... Rb4 {[%clk 0:00:40.6]}
62. Kh5 {[%clk 0:01:03]} 62... Rb7 {[%clk 0:00:38]} 63. g5 {[%clk 0:01:02.6]}
63... Rc7 {[%clk 0:00:38.9]} 64. Rg6+ {[%clk 0:01:03.7]} 64... Kh7 {[%clk
0:00:39.7]} 65. Rh6+ {[%clk 0:01:03.3]} 65... Kg7 {[%clk 0:00:41]} 66. Rd6
{[%clk 0:01:03]} 66... Ra7 {[%clk 0:00:39.6]} 67. Rd4 {[%clk 0:01:03.1]} 67...
Rb7 {[%clk 0:00:40.3]} 68. Rf4 {[%clk 0:01:04.2]} 68... Rc7 {[%clk 0:00:41.3]}
69. Rd4 {[%clk 0:01:00.7]} 69... Rb7 {[%clk 0:00:42.5]} 70. Rd5 {[%clk
0:00:58.7]} 70... Ra7 {[%clk 0:00:43.6]} 71. g6 {[%clk 0:00:58.9]} 71... Rb7
{[%clk 0:00:44.9]} 72. Rf5 {[%clk 0:00:58.4]} 72... Ra7 {[%clk 0:00:45.5]} 73.
Kg5 {[%clk 0:00:59.7]} 73... Rb7 {[%clk 0:00:46.8]} 74. Rf2 {[%clk 0:00:49.3]}
74... Rb5+ {[%clk 0:00:47.5]} 75. Rf5 {[%clk 0:00:50.4]} 75... Rb7 {[%clk
0:00:48.7]} 76. Rd5 {[%clk 0:00:50.3]} 76... Ra7 {[%clk 0:00:49.7]} 77. Rb5
{[%clk 0:00:51.3]} 77... Rc7 {[%clk 0:00:50.3]} 78. Kh5 {[%clk 0:00:49.2]} 78...
Rd7 {[%clk 0:00:50.1]} 1/2-1/2

[Event "*** Qualifier 3: Titled Tuesday 3|2 Blitz"]
[Site "Chess.com"]
[Date "2017.04.18"]
[Round "6"]
[White "dhanushbharadwaj"]
[Black "proxy6"]
[Result "0-1"]
[WhiteElo "2430"]
[BlackElo "2205"]
[TimeControl "180+2"]
[EndTime "14:22:11 PDT"]
[Termination "proxy6 won by resignation"]

1. Nf3 {[%clk 0:03:02]} 1... Nf6 {[%clk 0:03:00.7]} 2. c4 {[%clk 0:03:02.1]}
2... e6 {[%clk 0:03:02]} 3. g3 {[%clk 0:03:01.3]} 3... d5 {[%clk 0:03:00]} 4. b3
{[%clk 0:03:01.9]} 4... Be7 {[%clk 0:03:00.9]} 5. Bg2 {[%clk 0:03:02.1]} 5...
O-O {[%clk 0:03:02.1]} 6. O-O {[%clk 0:03:02.8]} 6... d4 {[%clk 0:03:03.6]} 7.
Bb2 {[%clk 0:03:03.3]} 7... c5 {[%clk 0:03:05]} 8. d3 {[%clk 0:03:01.5]} 8...
Nc6 {[%clk 0:03:06]} 9. Nbd2 {[%clk 0:03:00.2]} 9... e5 {[%clk 0:03:04.5]} 10.
Re1 {[%clk 0:03:00.6]} 10... Be6 {[%clk 0:02:58.1]} 11. Ng5 {[%clk 0:02:52.7]}
11... Bf5 {[%clk 0:02:51.4]} 12. Nge4 {[%clk 0:02:52.7]} 12... Bg6 {[%clk
0:02:44.1]} 13. Nxf6+ {[%clk 0:02:53.1]} 13... Bxf6 {[%clk 0:02:43.8]} 14. a3
{[%clk 0:02:54.6]} 14... Be7 {[%clk 0:02:34.1]} 15. Rb1 {[%clk 0:02:52]} 15...
Rc8 {[%clk 0:02:31.1]} 16. Ba1 {[%clk 0:02:37.5]} 16... a5 {[%clk 0:02:29.5]}
17. Bd5 {[%clk 0:02:24.1]} 17... Kh8 {[%clk 0:02:29.4]} 18. Nf3 {[%clk
0:02:15.5]} 18... Bd6 {[%clk 0:02:20.1]} 19. e3 {[%clk 0:02:05.7]} 19... f6
{[%clk 0:02:07.5]} 20. exd4 {[%clk 0:02:05.1]} 20... cxd4 {[%clk 0:02:04]} 21.
Nh4 {[%clk 0:02:02.7]} 21... Bf7 {[%clk 0:02:04.4]} 22. Bxf7 {[%clk 0:01:58.6]}
22... Rxf7 {[%clk 0:02:06.3]} 23. Qh5 {[%clk 0:01:59.4]} 23... Qd7 {[%clk
0:01:56.9]} 24. Bb2 {[%clk 0:01:47.7]} 24... Kg8 {[%clk 0:01:57.1]} 25. Re4
{[%clk 0:01:29.5]} 25... g6 {[%clk 0:01:50.2]} 26. Qd1 {[%clk 0:01:02]} 26... f5
{[%clk 0:01:47.9]} 27. Re1 {[%clk 0:01:02.3]} 27... Re8 {[%clk 0:01:48.7]} 28.
Nf3 {[%clk 0:00:58]} 28... Rfe7 {[%clk 0:01:38.3]} 29. Qd2 {[%clk 0:00:50.8]}
29... b6 {[%clk 0:01:39.1]} 30. Re2 {[%clk 0:00:47]} 30... Bc5 {[%clk
0:01:36.1]} 31. Rbe1 {[%clk 0:00:37.8]} 31... Qd6 {[%clk 0:01:30.5]} 32. Ng5
{[%clk 0:00:29.9]} 32... Bxa3 {[%clk 0:01:10]} 33. Bxa3 {[%clk 0:00:29.6]} 33...
Qxa3 {[%clk 0:01:11.9]} 34. f4 {[%clk 0:00:29.4]} 34... exf4 {[%clk 0:00:55.4]}
35. Rxe7 {[%clk 0:00:27.4]} 35... Rxe7 {[%clk 0:00:57.3]} 36. Rxe7 {[%clk
0:00:28.3]} 36... Qxe7 {[%clk 0:00:57.5]} 37. Qxf4 {[%clk 0:00:29.5]} 37... Qe3+
{[%clk 0:00:42]} 38. Qxe3 {[%clk 0:00:29.9]} 38... dxe3 {[%clk 0:00:43.9]} 39.
Nf3 {[%clk 0:00:31.3]} 39... h6 {[%clk 0:00:24.2]} 40. Kf1 {[%clk 0:00:30.5]}
40... g5 {[%clk 0:00:25.7]} 41. Ke2 {[%clk 0:00:31.5]} 41... f4 {[%clk
0:00:27.2]} 42. gxf4 {[%clk 0:00:32.8]} 42... gxf4 {[%clk 0:00:29.1]} 43. d4
{[%clk 0:00:34.3]} 43... Kf7 {[%clk 0:00:29.6]} 44. Kd3 {[%clk 0:00:31.3]} 44...
Kf6 {[%clk 0:00:29.1]} 45. Ke4 {[%clk 0:00:31.8]} 45... e2 {[%clk 0:00:15.6]}
46. Kd3 {[%clk 0:00:31]} 46... Kf5 {[%clk 0:00:12.1]} 47. Kxe2 {[%clk
0:00:31.5]} 47... Ke4 {[%clk 0:00:12.3]} 48. d5 {[%clk 0:00:32]} 48... Ne7
{[%clk 0:00:10.4]} 49. d6 {[%clk 0:00:30.9]} 49... Nc6 {[%clk 0:00:11.5]} 50. d7
{[%clk 0:00:30.2]} 50... h5 {[%clk 0:00:08.6]} 51. Kf2 {[%clk 0:00:28]} 51...
Nd8 {[%clk 0:00:04.1]} 52. Ke2 {[%clk 0:00:16]} 52... Kf5 {[%clk 0:00:04.8]} 53.
Nd4+ {[%clk 0:00:16.1]} 53... Ke5 {[%clk 0:00:05.5]} 54. Kd3 {[%clk 0:00:15.2]}
54... Kd6 {[%clk 0:00:05.7]} 55. Ke4 {[%clk 0:00:16.5]} 55... Kxd7 {[%clk
0:00:06.2]} 56. Kxf4 {[%clk 0:00:17.8]} 56... Ne6+ {[%clk 0:00:02.4]} 57. Nxe6
{[%clk 0:00:18.9]} 57... Kxe6 {[%clk 0:00:04.3]} 58. Ke4 {[%clk 0:00:20.8]}
58... Kf6 {[%clk 0:00:04.5]} 59. h4 {[%clk 0:00:21.5]} 59... Ke6 {[%clk
0:00:05.4]} 60. Kf4 {[%clk 0:00:20.6]} 60... Kf6 {[%clk 0:00:06.7]} 61. Ke4
{[%clk 0:00:21.2]} 61... Ke6 {[%clk 0:00:08.1]} 62. Kd3 {[%clk 0:00:22.4]} 62...
Kf5 {[%clk 0:00:07.9]} 63. c5 {[%clk 0:00:22.5]} 63... bxc5 {[%clk 0:00:08.6]}
64. Kc4 {[%clk 0:00:24.1]} 64... Kg4 {[%clk 0:00:10]} 65. Kxc5 {[%clk 0:00:26]}
65... Kxh4 {[%clk 0:00:11.5]} 66. Kb5 {[%clk 0:00:27.9]} 66... Kg4 {[%clk
0:00:12]} 67. Kxa5 {[%clk 0:00:29.8]} 67... h4 {[%clk 0:00:13.6]} 68. b4 {[%clk
0:00:31.7]} 68... h3 {[%clk 0:00:15.5]} 69. b5 {[%clk 0:00:33.6]} 69... h2
{[%clk 0:00:17.1]} 70. b6 {[%clk 0:00:35.5]} 70... h1=Q {[%clk 0:00:19]} 71. b7
{[%clk 0:00:37.4]} 71... Qxb7 {[%clk 0:00:19.7]} 0-1

[Event "*** Qualifier 3: Titled Tuesday 3|2 Blitz"]
[Site "Chess.com"]
[Date "2017.04.18"]
[Round "6"]
[White "PelinGorki"]
[Black "GamayevOleg"]
[Result "1/2-1/2"]
[WhiteElo "2369"]
[BlackElo "2414"]
[TimeControl "180+2"]
[EndTime "14:23:20 PDT"]
[Termination "Game drawn by agreement"]

1. e4 {[%clk 0:03:02]} 1... d6 {[%clk 0:03:01.9]} 2. d4 {[%clk 0:03:02.3]} 2...
Nf6 {[%clk 0:03:03.1]} 3. Nc3 {[%clk 0:03:03.1]} 3... e5 {[%clk 0:03:04.5]} 4.
Nf3 {[%clk 0:03:03.5]} 4... exd4 {[%clk 0:03:04.4]} 5. Qxd4 {[%clk 0:03:03.3]}
5... Nc6 {[%clk 0:03:05.3]} 6. Bb5 {[%clk 0:03:03]} 6... Bd7 {[%clk 0:03:06.7]}
7. Bxc6 {[%clk 0:03:03.7]} 7... Bxc6 {[%clk 0:03:08.6]} 8. Bg5 {[%clk
0:03:02.8]} 8... Be7 {[%clk 0:03:10]} 9. O-O-O {[%clk 0:03:01.9]} 9... O-O
{[%clk 0:03:10.2]} 10. h4 {[%clk 0:03:02.3]} 10... h6 {[%clk 0:03:10.8]} 11. Be3
{[%clk 0:02:48]} 11... Ng4 {[%clk 0:03:10.7]} 12. Nd5 {[%clk 0:02:45.9]} 12...
Bxd5 {[%clk 0:03:10.3]} 13. exd5 {[%clk 0:02:46.1]} 13... Nxe3 {[%clk
0:03:05.8]} 14. fxe3 {[%clk 0:02:48]} 14... Bf6 {[%clk 0:03:06.3]} 15. Qf4
{[%clk 0:02:46.3]} 15... Re8 {[%clk 0:03:03.8]} 16. g4 {[%clk 0:02:46.9]} 16...
Qe7 {[%clk 0:03:02.8]} 17. Rd3 {[%clk 0:02:42]} 17... Be5 {[%clk 0:02:59]} 18.
Nxe5 {[%clk 0:02:40.3]} 18... Qxe5 {[%clk 0:02:59.6]} 19. Qf2 {[%clk 0:02:37.6]}
19... Qe4 {[%clk 0:02:53.3]} 20. Rg1 {[%clk 0:02:36.1]} 20... g6 {[%clk
0:02:49]} 21. h5 {[%clk 0:02:35.3]} 21... Re5 {[%clk 0:02:38.1]} 22. Rf1 {[%clk
0:02:32.1]} 22... Rf8 {[%clk 0:02:37.3]} 23. hxg6 {[%clk 0:02:33.4]} 23... Qxg6
{[%clk 0:02:37.9]} 24. Rd4 {[%clk 0:02:30]} 24... Rg5 {[%clk 0:02:08.4]} 25. Rf4
{[%clk 0:02:19.4]} 25... Qg7 {[%clk 0:01:51.5]} 26. e4 {[%clk 0:02:15.3]} 26...
b6 {[%clk 0:01:48.1]} 27. Qf3 {[%clk 0:02:11.9]} 27... a5 {[%clk 0:01:45.2]} 28.
Rh1 {[%clk 0:02:03.5]} 28... Re8 {[%clk 0:01:42.3]} 29. Kb1 {[%clk 0:01:59.8]}
29... Re7 {[%clk 0:01:39]} 30. a3 {[%clk 0:01:58]} 30... Rg6 {[%clk 0:01:39.6]}
31. Rh5 {[%clk 0:01:54]} 31... Qd4 {[%clk 0:01:36.4]} 32. g5 {[%clk 0:01:46.3]}
32... Rxg5 {[%clk 0:01:22.4]} 33. Rg4 {[%clk 0:01:39.5]} 33... Rxg4 {[%clk
0:01:16.7]} 34. Qxg4+ {[%clk 0:01:40.3]} 34... Qg7 {[%clk 0:01:18.6]} 35. Qc8+
{[%clk 0:01:36.8]} 35... Kh7 {[%clk 0:01:20.1]} 36. Rh4 {[%clk 0:01:28.9]} 36...
Re5 {[%clk 0:01:01.6]} 37. Qxc7 {[%clk 0:01:25.1]} 37... f5 {[%clk 0:00:31.3]}
38. Qxd6 {[%clk 0:01:22.3]} 38... Rxe4 {[%clk 0:00:32.4]} 39. Rxe4 {[%clk
0:01:22.3]} 39... fxe4 {[%clk 0:00:34.3]} 40. Qe6 {[%clk 0:01:21.5]} 40... Qd4
{[%clk 0:00:30.6]} 41. d6 {[%clk 0:01:22.7]} 41... e3 {[%clk 0:00:32.1]} 42. d7
{[%clk 0:01:18.1]} 42... e2 {[%clk 0:00:31.8]} 43. Qe7+ {[%clk 0:01:14]} 43...
Kg6 {[%clk 0:00:30.2]} 44. Qe8+ {[%clk 0:01:14.2]} 44... Kg7 {[%clk 0:00:31.2]}
45. Qxe2 {[%clk 0:01:02.5]} 45... Qxd7 {[%clk 0:00:31.5]} 46. Qg2+ {[%clk
0:01:03.8]} 46... Kh8 {[%clk 0:00:29.3]} 47. Qg6 {[%clk 0:01:02.2]} 47... Qd1+
{[%clk 0:00:28]} 48. Ka2 {[%clk 0:01:03.2]} 48... Qd5+ {[%clk 0:00:28]} 49. b3
{[%clk 0:01:02.3]} 49... Qc5 {[%clk 0:00:28.8]} 50. Qxh6+ {[%clk 0:01:01.3]}
50... Kg8 {[%clk 0:00:30.4]} 51. Qg6+ {[%clk 0:01:02.6]} 51... Kf8 {[%clk
0:00:31.9]} 52. Qf6+ {[%clk 0:01:03.5]} 52... Ke8 {[%clk 0:00:32.9]} 53. Qb2
{[%clk 0:01:05.2]} 53... b5 {[%clk 0:00:33.2]} 54. Qh8+ {[%clk 0:00:56.7]} 54...
Kd7 {[%clk 0:00:34.1]} 55. Kb2 {[%clk 0:00:58.4]} 55... b4 {[%clk 0:00:34.9]}
56. axb4 {[%clk 0:00:55.4]} 56... axb4 {[%clk 0:00:36.8]} 57. Qf6 {[%clk
0:00:39.9]} 57... Kc7 {[%clk 0:00:35.6]} 58. c3 {[%clk 0:00:26.2]} 58... bxc3+
{[%clk 0:00:36.2]} 59. Qxc3 {[%clk 0:00:27.5]} 59... Kb6 {[%clk 0:00:37.3]} 60.
Qf6+ {[%clk 0:00:19.7]} 60... Kb5 {[%clk 0:00:37.1]} 61. Qf1+ {[%clk 0:00:20.1]}
61... Kb6 {[%clk 0:00:38.2]} 62. Qf4 {[%clk 0:00:21]} 62... Kb5 {[%clk
0:00:37.8]} 63. Qe4 {[%clk 0:00:20.3]} 63... Qf2+ {[%clk 0:00:34.8]} 64. Kc3
{[%clk 0:00:20.7]} 64... Qc5+ {[%clk 0:00:36.4]} 65. Kd3 {[%clk 0:00:20.4]}
65... Qd6+ {[%clk 0:00:36.1]} 66. Ke2 {[%clk 0:00:21.5]} 66... Qb4 {[%clk
0:00:34.7]} 67. Qd5+ {[%clk 0:00:20.4]} 67... Qc5 {[%clk 0:00:33.8]} 68. Qb7+
{[%clk 0:00:18.7]} 68... Ka5 {[%clk 0:00:33.6]} 69. Qa8+ {[%clk 0:00:05.5]}
69... Kb5 {[%clk 0:00:31.6]} 70. Qa4+ {[%clk 0:00:06.7]} 70... Kb6 {[%clk
0:00:32.8]} 71. Qe4 {[%clk 0:00:06.8]} 71... Qb5+ {[%clk 0:00:32.9]} 72. Qd3
{[%clk 0:00:08.3]} 72... Qxd3+ {[%clk 0:00:33.9]} 73. Kxd3 {[%clk 0:00:10.2]}
73... Kb5 {[%clk 0:00:35.6]} 74. Kc3 {[%clk 0:00:11.9]} 74... Kc5 {[%clk
0:00:36.9]} 75. b4+ {[%clk 0:00:13.8]} 75... Kb5 {[%clk 0:00:38.6]} 76. Kb3
{[%clk 0:00:15.7]} 76... Kb6 {[%clk 0:00:40.1]} 77. Kc4 {[%clk 0:00:17.6]} 77...
Kc6 {[%clk 0:00:41.4]} 1/2-1/2